[Event "*** MasterClass Titled Tuesday Blitz"]
[Site "Chess.com"]
[Date "2017.12.12"]
[Round "5"]
[White "PulpanJ"]
[Black "Noukii"]
[Result "1/2-1/2"]
[WhiteElo "2472"]
[BlackElo "2606"]
[TimeControl "180+2"]
[EndTime "14:15:22 PST"]
[Termination "Game drawn by repetition"]

1. d4 {[%clk 0:02:51.2]} 1... d5 {[%clk 0:03:00.1]} 2. Nf3 {[%clk 0:02:49.7]}
2... Nf6 {[%clk 0:03:00.4]} 3. c4 {[%clk 0:02:44.4]} 3... c6 {[%clk 0:03:01.3]}
4. Nbd2 {[%clk 0:02:44.7]} 4... Bf5 {[%clk 0:02:51.3]} 5. Nh4 {[%clk 0:02:22.2]}
5... Be6 {[%clk 0:02:49.8]} 6. e3 {[%clk 0:02:21.2]} 6... g6 {[%clk 0:02:49.3]}
7. Bd3 {[%clk 0:02:16.3]} 7... Bg7 {[%clk 0:02:50.5]} 8. O-O {[%clk 0:02:14.7]}
8... O-O {[%clk 0:02:51.9]} 9. b3 {[%clk 0:02:10.4]} 9... c5 {[%clk 0:02:52.4]}
10. Bb2 {[%clk 0:02:07.6]} 10... cxd4 {[%clk 0:02:53.4]} 11. Bxd4 {[%clk
0:02:06.8]} 11... Nc6 {[%clk 0:02:55]} 12. Bb2 {[%clk 0:02:07.1]} 12... Qa5
{[%clk 0:02:51.8]} 13. Qe2 {[%clk 0:01:54.4]} 13... Nb4 {[%clk 0:02:46.4]} 14.
Bc3 {[%clk 0:01:52.8]} 14... Qb6 {[%clk 0:02:44.1]} 15. Bd4 {[%clk 0:01:45]}
15... Qd8 {[%clk 0:02:28.7]} 16. c5 {[%clk 0:01:39]} 16... Nxd3 {[%clk
0:02:26.8]} 17. Qxd3 {[%clk 0:01:39.3]} 17... Re8 {[%clk 0:02:24.2]} 18. b4
{[%clk 0:01:35.3]} 18... Bd7 {[%clk 0:02:22.3]} 19. Nhf3 {[%clk 0:01:32.2]}
19... Bf5 {[%clk 0:02:17.4]} 20. Qb3 {[%clk 0:01:29.2]} 20... Qd7 {[%clk
0:01:55.3]} 21. Ne5 {[%clk 0:01:28.3]} 21... Qb5 {[%clk 0:01:55.3]} 22. a4
{[%clk 0:01:27.7]} 22... Qe2 {[%clk 0:01:55.7]} 23. Ndf3 {[%clk 0:01:24.5]}
23... Qc2 {[%clk 0:01:48.7]} 24. Qa3 {[%clk 0:01:14.1]} 24... Qe4 {[%clk
0:01:00.6]} 25. Nxf7 {[%clk 0:01:12.1]} 25... h6 {[%clk 0:00:58.2]} 26. N7e5
{[%clk 0:01:05.3]} 26... Ng4 {[%clk 0:00:53.1]} 27. Nxg4 {[%clk 0:01:05.8]}
27... Bxg4 {[%clk 0:00:54.1]} 28. Nd2 {[%clk 0:01:06.7]} 28... Qe6 {[%clk
0:00:49.3]} 29. Bxg7 {[%clk 0:01:03.8]} 29... Kxg7 {[%clk 0:00:51.2]} 30. Qc3+
{[%clk 0:01:04.5]} 30... Qf6 {[%clk 0:00:52.2]} 31. Qd3 {[%clk 0:01:04.1]} 31...
Rad8 {[%clk 0:00:46.7]} 32. Qb5 {[%clk 0:00:53.5]} 32... Rd7 {[%clk 0:00:38.8]}
33. h3 {[%clk 0:00:51.5]} 33... a6 {[%clk 0:00:39.2]} 34. Qd3 {[%clk 0:00:49.1]}
34... Bf5 {[%clk 0:00:40.3]} 35. Qe2 {[%clk 0:00:47.9]} 35... Qh4 {[%clk
0:00:33.5]} 36. b5 {[%clk 0:00:40.6]} 36... axb5 {[%clk 0:00:35.4]} 37. Qxb5
{[%clk 0:00:36]} 37... Rc8 {[%clk 0:00:29.2]} 38. Nf3 {[%clk 0:00:36.2]} 38...
Qf6 {[%clk 0:00:27.1]} 39. Nd4 {[%clk 0:00:33.7]} 39... Rdc7 {[%clk 0:00:28.6]}
40. Rfc1 {[%clk 0:00:32]} 40... Bd7 {[%clk 0:00:25.3]} 41. Qb4 {[%clk
0:00:30.5]} 41... h5 {[%clk 0:00:19.7]} 42. Rab1 {[%clk 0:00:26.2]} 42... Ra8
{[%clk 0:00:18]} 43. a5 {[%clk 0:00:25.4]} 43... g5 {[%clk 0:00:15.5]} 44. Ne2
{[%clk 0:00:18.9]} 44... Rac8 {[%clk 0:00:16.3]} 45. Ng3 {[%clk 0:00:19.7]}
45... Kh6 {[%clk 0:00:17.1]} 46. Qb6 {[%clk 0:00:20]} 46... Bc6 {[%clk
0:00:13.7]} 47. a6 {[%clk 0:00:19.5]} 47... bxa6 {[%clk 0:00:13.6]} 48. Qxa6
{[%clk 0:00:21.3]} 48... Ra8 {[%clk 0:00:15.2]} 49. Qb6 {[%clk 0:00:21.3]} 49...
Rb7 {[%clk 0:00:16.7]} 50. Qxb7 {[%clk 0:00:22.7]} 50... Bxb7 {[%clk 0:00:18.6]}
51. Rxb7 {[%clk 0:00:24.1]} 51... Ra2 {[%clk 0:00:20.5]} 52. Rb6 {[%clk
0:00:23.3]} 52... e6 {[%clk 0:00:21.1]} 53. Rf1 {[%clk 0:00:24.6]} 53... h4
{[%clk 0:00:22.5]} 54. Nh1 {[%clk 0:00:26]} 54... Rc2 {[%clk 0:00:24]} 55. c6
{[%clk 0:00:27.1]} 55... Qe5 {[%clk 0:00:24.8]} 56. Rd1 {[%clk 0:00:23.6]} 56...
Qc3 {[%clk 0:00:25.2]} 57. c7 {[%clk 0:00:23.2]} 57... Qe5 {[%clk 0:00:20.7]}
58. Rb7 {[%clk 0:00:20.3]} 58... Rxc7 {[%clk 0:00:21.2]} 59. Rxc7 {[%clk
0:00:22.1]} 59... Qxc7 {[%clk 0:00:23.1]} 60. g3 {[%clk 0:00:23.8]} 60... Qc2
{[%clk 0:00:23.7]} 61. Rf1 {[%clk 0:00:24.6]} 61... Kg6 {[%clk 0:00:24.1]} 62.
gxh4 {[%clk 0:00:25.2]} 62... gxh4 {[%clk 0:00:26]} 63. Kg2 {[%clk 0:00:26.7]}
63... Kf5 {[%clk 0:00:27.2]} 64. Kf3 {[%clk 0:00:27.2]} 64... e5 {[%clk
0:00:27.5]} 65. Kg2 {[%clk 0:00:27.8]} 65... Ke4 {[%clk 0:00:28.7]} 66. Re1
{[%clk 0:00:26.7]} 66... Qd2 {[%clk 0:00:29.3]} 67. Rb1 {[%clk 0:00:26.3]} 67...
d4 {[%clk 0:00:30.7]} 68. exd4 {[%clk 0:00:28.1]} 68... exd4 {[%clk 0:00:32.6]}
69. Rb5 {[%clk 0:00:26.3]} 69... d3 {[%clk 0:00:30]} 70. Rb8 {[%clk 0:00:24.7]}
70... Qg5+ {[%clk 0:00:29]} 71. Kf1 {[%clk 0:00:26]} 71... Qc1+ {[%clk
0:00:30.5]} 72. Kg2 {[%clk 0:00:26.8]} 72... d2 {[%clk 0:00:32.1]} 73. f3+
{[%clk 0:00:27.5]} 73... Kf5 {[%clk 0:00:19.6]} 74. Rb5+ {[%clk 0:00:23.1]}
74... Kf6 {[%clk 0:00:09.6]} 75. Nf2 {[%clk 0:00:21.4]} 75... Qc7 {[%clk
0:00:09.2]} 76. Rb1 {[%clk 0:00:19.9]} 76... Qg3+ {[%clk 0:00:09.9]} 77. Kf1
{[%clk 0:00:21.1]} 77... Qxf3 {[%clk 0:00:11]} 78. Rd1 {[%clk 0:00:22.6]} 78...
Qe3 {[%clk 0:00:10.6]} 79. Rxd2 {[%clk 0:00:23.9]} 79... Kf5 {[%clk 0:00:09.8]}
80. Re2 {[%clk 0:00:23.6]} 80... Qf3 {[%clk 0:00:10.7]} 81. Rd2 {[%clk
0:00:24.7]} 81... Kf4 {[%clk 0:00:11.5]} 82. Rd4+ {[%clk 0:00:25.7]} 82... Kg5
{[%clk 0:00:11.4]} 83. Rg4+ {[%clk 0:00:26.7]} 83... Kh5 {[%clk 0:00:12.7]} 84.
Kg1 {[%clk 0:00:23.1]} 84... Qe3 {[%clk 0:00:13.2]} 85. Kg2 {[%clk 0:00:23.6]}
85... Qe2 {[%clk 0:00:14]} 86. Re4 {[%clk 0:00:23.3]} 86... Qb2 {[%clk
0:00:14.7]} 87. Rg4 {[%clk 0:00:21.2]} 87... Qe2 {[%clk 0:00:15.2]} 88. Rf4
{[%clk 0:00:21.3]} 88... Qd2 {[%clk 0:00:12.6]} 89. Rf5+ {[%clk 0:00:21.8]}
89... Kg6 {[%clk 0:00:13.2]} 90. Rf3 {[%clk 0:00:19.1]} 90... Qd5 {[%clk
0:00:13.2]} 91. Ng4 {[%clk 0:00:19.6]} 91... Kg5 {[%clk 0:00:14.4]} 92. Nh2
{[%clk 0:00:18.6]} 92... Qd2+ {[%clk 0:00:14.8]} 93. Rf2 {[%clk 0:00:19.2]}
93... Qd5+ {[%clk 0:00:16.3]} 94. Kg1 {[%clk 0:00:20.5]} 94... Qc5 {[%clk
0:00:16.6]} 95. Kg2 {[%clk 0:00:20.3]} 95... Qd5+ {[%clk 0:00:17.5]} 96. Kg1
{[%clk 0:00:20.7]} 96... Qc5 {[%clk 0:00:17.5]} 97. Kf1 {[%clk 0:00:21.3]} 97...
Qc6 {[%clk 0:00:16.6]} 98. Kg1 {[%clk 0:00:21.4]} 98... Qc1+ {[%clk 0:00:16.9]}
99. Kg2 {[%clk 0:00:21.9]} 99... Qe3 {[%clk 0:00:16]} 100. Nf3+ {[%clk
0:00:21.8]} 100... Kh5 {[%clk 0:00:16.3]} 101. Ng1 {[%clk 0:00:19.9]} 101...
Qg3+ {[%clk 0:00:16.7]} 102. Kf1 {[%clk 0:00:21.2]} 102... Qd3+ {[%clk 0:00:17]}
103. Kg2 {[%clk 0:00:20.9]} 103... Kh6 {[%clk 0:00:18.2]} 104. Rf3 {[%clk
0:00:21.4]} 104... Qe4 {[%clk 0:00:19.1]} 105. Kf1 {[%clk 0:00:22]} 105... Kg5
{[%clk 0:00:20.1]} 106. Kf2 {[%clk 0:00:22.5]} 106... Qd4+ {[%clk 0:00:21.1]}
107. Kg2 {[%clk 0:00:23.1]} 107... Qd2+ {[%clk 0:00:21.2]} 108. Rf2 {[%clk
0:00:23.7]} 108... Qd5+ {[%clk 0:00:22.8]} 109. Kf1 {[%clk 0:00:24.9]} 109...
Qd1+ {[%clk 0:00:23.5]} 110. Kg2 {[%clk 0:00:25.7]} 110... Qd5+ {[%clk
0:00:25.1]} 111. Kf1 {[%clk 0:00:25.7]} 111... Qh1 {[%clk 0:00:26.2]} 112. Rf3
{[%clk 0:00:21.3]} 112... Kg6 {[%clk 0:00:25.8]} 113. Rf4 {[%clk 0:00:20.2]}
113... Kg5 {[%clk 0:00:22.1]} 114. Rg4+ {[%clk 0:00:21]} 114... Kh5 {[%clk
0:00:23.6]} 115. Rg2 {[%clk 0:00:22.6]} 115... Kh6 {[%clk 0:00:21.5]} 116. Kf2
{[%clk 0:00:23.5]} 116... Kh5 {[%clk 0:00:22.7]} 117. Kf3 {[%clk 0:00:21.5]}
117... Kh6 {[%clk 0:00:22.8]} 118. Kf2 {[%clk 0:00:22.6]} 118... Kh5 {[%clk
0:00:24.2]} 119. Ne2 {[%clk 0:00:21.1]} 119... Qd1 {[%clk 0:00:20]} 120. Nf4+
{[%clk 0:00:20.6]} 120... Kh6 {[%clk 0:00:21.6]} 121. Rg6+ {[%clk 0:00:20]}
121... Kh7 {[%clk 0:00:21.6]} 122. Rg4 {[%clk 0:00:21.7]} 122... Qd2+ {[%clk
0:00:23]} 123. Kf3 {[%clk 0:00:20.8]} 123... Qe1 {[%clk 0:00:21.7]} 124. Ng2
{[%clk 0:00:19.7]} 124... Qf1+ {[%clk 0:00:21.3]} 125. Ke3 {[%clk 0:00:20]}
125... Qg1+ {[%clk 0:00:21.7]} 126. Kf4 {[%clk 0:00:20.7]} 126... Qd4+ {[%clk
0:00:20.4]} 127. Kg5 {[%clk 0:00:21.3]} 127... Qd8+ {[%clk 0:00:21.1]} 128. Kh5
{[%clk 0:00:21.4]} 128... Qf6 {[%clk 0:00:20.1]} 129. Rg5 {[%clk 0:00:18.5]}
129... Qe7 {[%clk 0:00:10.9]} 130. Nxh4 {[%clk 0:00:12]} 130... Qe2+ {[%clk
0:00:11.9]} 131. Rg4 {[%clk 0:00:12.8]} 131... Qe5+ {[%clk 0:00:08.8]} 132. Rg5
{[%clk 0:00:12.8]} 132... Qe2+ {[%clk 0:00:10.3]} 133. Rg4 {[%clk 0:00:12.8]}
133... Qe5+ {[%clk 0:00:11.9]} 134. Rg5 {[%clk 0:00:12.4]} 134... Qe2+ {[%clk
0:00:12.8]} 135. Rg4 {[%clk 0:00:12.7]} 135... Qe5+ {[%clk 0:00:09.1]} 136. Rg5
{[%clk 0:00:13.3]} 136... Qe2+ {[%clk 0:00:09.8]} 137. Rg4 {[%clk 0:00:13.5]}
1/2-1/2

[Event "*** MasterClass Titled Tuesday Blitz"]
[Site "Chess.com"]
[Date "2017.12.12"]
[Round "6"]
[White "wonderfultime"]
[Black "TheLancer"]
[Result "0-1"]
[WhiteElo "2702"]
[BlackElo "2484"]
[TimeControl "180+2"]
[EndTime "14:19:00 PST"]
[Termination "TheLancer won by resignation"]

1. d4 {[%clk 0:03:01.9]} 1... Nf6 {[%clk 0:03:00.4]} 2. Bf4 {[%clk 0:03:02.9]}
2... e6 {[%clk 0:03:01.5]} 3. e3 {[%clk 0:03:04.2]} 3... b6 {[%clk 0:03:03.1]}
4. Nf3 {[%clk 0:03:04.1]} 4... Bb7 {[%clk 0:03:04.6]} 5. h3 {[%clk 0:03:05.7]}
5... c5 {[%clk 0:03:06.5]} 6. c3 {[%clk 0:03:06.4]} 6... cxd4 {[%clk 0:03:08.1]}
7. exd4 {[%clk 0:03:05.5]} 7... Be7 {[%clk 0:03:10]} 8. Bd3 {[%clk 0:03:06.5]}
8... d6 {[%clk 0:03:11.9]} 9. Nbd2 {[%clk 0:03:07.8]} 9... a6 {[%clk 0:03:13.4]}
10. O-O {[%clk 0:03:09.1]} 10... O-O {[%clk 0:03:15]} 11. Re1 {[%clk 0:03:10.3]}
11... Re8 {[%clk 0:03:16.6]} 12. Bh2 {[%clk 0:03:11.4]} 12... Nbd7 {[%clk
0:03:18.2]} 13. a4 {[%clk 0:03:12.4]} 13... Nf8 {[%clk 0:03:19.8]} 14. Bf1
{[%clk 0:03:02.9]} 14... Ng6 {[%clk 0:03:20.6]} 15. Qb3 {[%clk 0:03:02.9]} 15...
Nd5 {[%clk 0:03:19.7]} 16. Nc4 {[%clk 0:02:58.6]} 16... Rb8 {[%clk 0:02:59]} 17.
Nfd2 {[%clk 0:02:58.8]} 17... Ba8 {[%clk 0:02:39.1]} 18. Ne4 {[%clk 0:02:52.6]}
18... Ndf4 {[%clk 0:02:35]} 19. Ned2 {[%clk 0:02:26.5]} 19... Bf8 {[%clk
0:02:27.4]} 20. Ne3 {[%clk 0:02:23.1]} 20... Qg5 {[%clk 0:02:13]} 21. Qd1 {[%clk
0:02:14.6]} 21... Nxh3+ {[%clk 0:02:10.7]} 0-1

[Event "*** MasterClass Titled Tuesday Blitz"]
[Site "Chess.com"]
[Date "2017.12.12"]
[Round "6"]
[White "A-Fier"]
[Black "jefferyx"]
[Result "0-1"]
[WhiteElo "2630"]
[BlackElo "2775"]
[TimeControl "180+2"]
[EndTime "14:19:38 PST"]
[Termination "jefferyx won by resignation"]

1. d4 {[%clk 0:03:01.9]} 1... Nf6 {[%clk 0:03:01.2]} 2. Bg5 {[%clk 0:03:02.9]}
2... d5 {[%clk 0:02:59.8]} 3. Nd2 {[%clk 0:03:02.6]} 3... Bg4 {[%clk 0:02:53.9]}
4. f3 {[%clk 0:02:56.3]} 4... Bf5 {[%clk 0:02:52.9]} 5. c4 {[%clk 0:02:52.2]}
5... e6 {[%clk 0:02:51.4]} 6. e4 {[%clk 0:02:49.5]} 6... dxe4 {[%clk 0:02:51]}
7. fxe4 {[%clk 0:02:50.7]} 7... Bg6 {[%clk 0:02:11.1]} 8. e5 {[%clk 0:02:40.5]}
8... h6 {[%clk 0:02:11.5]} 9. Bh4 {[%clk 0:02:37.2]} 9... Qxd4 {[%clk 0:02:12]}
10. Ngf3 {[%clk 0:02:38.4]} 10... Qe3+ {[%clk 0:02:12.8]} 11. Qe2 {[%clk
0:02:24.2]} 11... Qxe2+ {[%clk 0:02:13.1]} 12. Bxe2 {[%clk 0:02:26.1]} 12...
Nfd7 {[%clk 0:02:14.6]} 13. O-O-O {[%clk 0:02:25.6]} 13... Nc6 {[%clk
0:02:15.7]} 14. Bg3 {[%clk 0:02:25.6]} 14... a5 {[%clk 0:02:15.2]} 15. Nb3
{[%clk 0:02:22]} 15... Nb4 {[%clk 0:01:40.5]} 16. a3 {[%clk 0:02:22.1]} 16...
Nc6 {[%clk 0:01:41.9]} 17. h4 {[%clk 0:02:19.2]} 17... Be7 {[%clk 0:01:39.5]}
18. h5 {[%clk 0:02:19.8]} 18... Bh7 {[%clk 0:01:38.7]} 19. Nbd4 {[%clk
0:02:15.7]} 19... Nc5 {[%clk 0:01:39.6]} 20. Kd2 {[%clk 0:02:04.7]} 20... Nxd4
{[%clk 0:01:34.5]} 21. Nxd4 {[%clk 0:02:04.8]} 21... Ne4+ {[%clk 0:01:35.7]} 0-1

[Event "*** MasterClass Titled Tuesday Blitz"]
[Site "Chess.com"]
[Date "2017.12.12"]
[Round "6"]
[White "leopato"]
[Black "viktoriani"]
[Result "0-1"]
[WhiteElo "1793"]
[BlackElo "2067"]
[TimeControl "180+2"]
[EndTime "14:20:10 PST"]
[Termination "viktoriani won on time"]

1. e4 {[%clk 0:02:42.2]} 1... c5 {[%clk 0:03:00.4]} 2. Nf3 {[%clk 0:02:34.3]}
2... e6 {[%clk 0:02:44.4]} 3. d4 {[%clk 0:02:33.6]} 3... cxd4 {[%clk 0:02:46]}
4. Nxd4 {[%clk 0:02:27.2]} 4... a6 {[%clk 0:02:47.5]} 5. Nc3 {[%clk 0:02:24.9]}
5... Qc7 {[%clk 0:02:48.7]} 6. Be3 {[%clk 0:02:16.9]} 6... Nf6 {[%clk
0:02:50.1]} 7. Bd3 {[%clk 0:02:13.2]} 7... Bb4 {[%clk 0:02:51.5]} 8. O-O {[%clk
0:02:12.2]} 8... Nc6 {[%clk 0:02:52.5]} 9. Nb3 {[%clk 0:01:48.8]} 9... Ne5
{[%clk 0:02:45.2]} 10. f4 {[%clk 0:01:37.8]} 10... Neg4 {[%clk 0:02:45.2]} 11.
Bd4 {[%clk 0:01:33.4]} 11... d6 {[%clk 0:02:38.5]} 12. h3 {[%clk 0:01:27]} 12...
e5 {[%clk 0:02:39.2]} 0-1

[Event "*** MasterClass Titled Tuesday Blitz"]
[Site "Chess.com"]
[Date "2017.12.12"]
[Round "6"]
[White "nurmiTV"]
[Black "calemcc"]
[Result "1-0"]
[WhiteElo "2453"]
[BlackElo "2277"]
[TimeControl "180+2"]
[EndTime "14:20:31 PST"]
[Termination "nurmiTV won by checkmate"]

1. e4 {[%clk 0:03:00.7]} 1... e6 {[%clk 0:02:59.6]} 2. d4 {[%clk 0:03:01.1]}
2... d5 {[%clk 0:03:01.5]} 3. Nd2 {[%clk 0:03:02.4]} 3... Nc6 {[%clk 0:03:01.5]}
4. Ngf3 {[%clk 0:03:02]} 4... Nf6 {[%clk 0:03:01.6]} 5. e5 {[%clk 0:03:02.8]}
5... Nd7 {[%clk 0:03:02.9]} 6. Bb5 {[%clk 0:03:02.7]} 6... a5 {[%clk 0:03:00]}
7. O-O {[%clk 0:03:00.9]} 7... Be7 {[%clk 0:03:00.8]} 8. c3 {[%clk 0:03:00.7]}
8... Na7 {[%clk 0:02:58.1]} 9. Bd3 {[%clk 0:03:00.5]} 9... c5 {[%clk 0:02:58.8]}
10. Re1 {[%clk 0:02:53.8]} 10... Nc6 {[%clk 0:02:58.4]} 11. Nf1 {[%clk
0:02:53.6]} 11... O-O {[%clk 0:02:54.2]} 12. Ng3 {[%clk 0:02:53.5]} 12... b6
{[%clk 0:02:51]} 13. h4 {[%clk 0:02:21]} 13... Ba6 {[%clk 0:02:46.6]} 14. Bxa6
{[%clk 0:02:07.6]} 14... Rxa6 {[%clk 0:02:46.1]} 15. Ng5 {[%clk 0:02:09]} 15...
Bxg5 {[%clk 0:02:30]} 16. Bxg5 {[%clk 0:02:05.3]} 16... Qc8 {[%clk 0:02:31]} 17.
Nh5 {[%clk 0:02:02.8]} 17... Re8 {[%clk 0:02:23.9]} 18. Qg4 {[%clk 0:01:57.9]}
18... g6 {[%clk 0:02:13.7]} 19. Nf6+ {[%clk 0:01:52.3]} 19... Nxf6 {[%clk
0:02:14.3]} 20. Bxf6 {[%clk 0:01:54.2]} 20... Ne7 {[%clk 0:02:12.5]} 21. Qg5
{[%clk 0:01:52.6]} 21... Ra7 {[%clk 0:01:39]} 22. g4 {[%clk 0:01:49.9]} 22...
cxd4 {[%clk 0:01:09.1]} 23. Qh6 {[%clk 0:01:48.2]} 23... Nf5 {[%clk 0:01:09.3]}
24. gxf5 {[%clk 0:01:48.1]} 24... Qxc3 {[%clk 0:01:09.6]} 25. Qg7# {[%clk
0:01:47.1]} 1-0

[Event "*** MasterClass Titled Tuesday Blitz"]
[Site "Chess.com"]
[Date "2017.12.12"]
[Round "6"]
[White "Kaphrep"]
[Black "Arm-Akiba"]
[Result "1-0"]
[WhiteElo "2628"]
[BlackElo "2689"]
[TimeControl "180+2"]
[EndTime "14:21:16 PST"]
[Termination "Kaphrep won by resignation"]

1. Nf3 {[%clk 0:03:01.9]} 1... Nf6 {[%clk 0:02:59.6]} 2. g3 {[%clk 0:03:02.1]}
2... d5 {[%clk 0:02:59.8]} 3. Bg2 {[%clk 0:03:03.5]} 3... g6 {[%clk 0:03:00.3]}
4. c4 {[%clk 0:03:02.7]} 4... c6 {[%clk 0:02:57]} 5. d4 {[%clk 0:02:59.4]} 5...
Bg7 {[%clk 0:02:56.7]} 6. O-O {[%clk 0:02:58.6]} 6... O-O {[%clk 0:02:57.6]} 7.
Ne5 {[%clk 0:02:59.8]} 7... e6 {[%clk 0:02:51.6]} 8. Nc3 {[%clk 0:02:53.7]} 8...
Nbd7 {[%clk 0:02:51.9]} 9. f4 {[%clk 0:02:44.7]} 9... dxc4 {[%clk 0:02:44.4]}
10. Nxc4 {[%clk 0:02:42.6]} 10... c5 {[%clk 0:02:45.6]} 11. dxc5 {[%clk
0:02:40.1]} 11... Nxc5 {[%clk 0:02:14.9]} 12. Be3 {[%clk 0:02:39.5]} 12... Ncd7
{[%clk 0:02:10]} 13. Nb5 {[%clk 0:02:33.1]} 13... Ng4 {[%clk 0:02:03.8]} 14. Bd4
{[%clk 0:02:30.1]} 14... a6 {[%clk 0:01:50.2]} 15. Bxg7 {[%clk 0:02:26.2]} 15...
Kxg7 {[%clk 0:01:50.4]} 16. Nbd6 {[%clk 0:02:25.3]} 16... Rb8 {[%clk 0:01:31.1]}
17. Qd4+ {[%clk 0:02:17.2]} 17... Ngf6 {[%clk 0:01:21.1]} 18. Rad1 {[%clk
0:02:11]} 18... b5 {[%clk 0:01:16.4]} 19. Ne5 {[%clk 0:02:04.2]} 19... Nxe5
{[%clk 0:01:16.5]} 20. fxe5 {[%clk 0:02:00.9]} 20... Nd5 {[%clk 0:01:17.6]} 21.
Bxd5 {[%clk 0:01:26.8]} 21... exd5 {[%clk 0:01:15]} 22. e6+ {[%clk 0:01:27.1]}
22... f6 {[%clk 0:01:16.2]} 23. Qa7+ {[%clk 0:01:28]} 23... Bd7 {[%clk
0:01:11.8]} 24. Qxd7+ {[%clk 0:01:19.7]} 24... Qxd7 {[%clk 0:01:12.1]} 25. exd7
{[%clk 0:01:21.6]} 25... Rfd8 {[%clk 0:01:13.6]} 26. Rxd5 {[%clk 0:01:20.9]} 1-0

[Event "*** MasterClass Titled Tuesday Blitz"]
[Site "Chess.com"]
[Date "2017.12.12"]
[Round "6"]
[White "TijanaBlagojevic"]
[Black "ChristopherYoo"]
[Result "1-0"]
[WhiteElo "2368"]
[BlackElo "2252"]
[TimeControl "180+2"]
[EndTime "14:21:32 PST"]
[Termination "TijanaBlagojevic won by checkmate"]

1. e4 {[%clk 0:03:01.9]} 1... c5 {[%clk 0:03:00.2]} 2. Nf3 {[%clk 0:03:03]} 2...
d6 {[%clk 0:03:00.9]} 3. Bb5+ {[%clk 0:03:03.7]} 3... Nd7 {[%clk 0:03:00.8]} 4.
O-O {[%clk 0:03:03.9]} 4... a6 {[%clk 0:02:59.8]} 5. Bd3 {[%clk 0:03:04.2]} 5...
Ngf6 {[%clk 0:03:00.7]} 6. Re1 {[%clk 0:03:00.8]} 6... b5 {[%clk 0:03:01]} 7. c4
{[%clk 0:03:01.7]} 7... b4 {[%clk 0:02:55.1]} 8. Bc2 {[%clk 0:03:00.1]} 8... e5
{[%clk 0:02:54]} 9. a3 {[%clk 0:03:01.2]} 9... bxa3 {[%clk 0:02:54.8]} 10. Rxa3
{[%clk 0:02:59.3]} 10... Be7 {[%clk 0:02:55.3]} 11. Nc3 {[%clk 0:02:57.7]} 11...
O-O {[%clk 0:02:55.6]} 12. Nh4 {[%clk 0:02:54.5]} 12... Nb6 {[%clk 0:02:50.9]}
13. Qe2 {[%clk 0:02:26.6]} 13... g6 {[%clk 0:02:09.3]} 14. Nf3 {[%clk
0:02:20.6]} 14... Nh5 {[%clk 0:02:04.7]} 15. d3 {[%clk 0:02:19.3]} 15... Kg7
{[%clk 0:02:05.1]} 16. Nd5 {[%clk 0:02:18]} 16... Nxd5 {[%clk 0:02:03.8]} 17.
cxd5 {[%clk 0:02:19]} 17... f5 {[%clk 0:01:46]} 18. exf5 {[%clk 0:02:16.5]}
18... Be6 {[%clk 0:01:46.4]} 19. fxe6 {[%clk 0:02:10.3]} 19... h6 {[%clk
0:01:35.9]} 20. Qe4 {[%clk 0:02:07.6]} 20... Nf4 {[%clk 0:01:33.6]} 21. d4
{[%clk 0:01:56.5]} 21... cxd4 {[%clk 0:01:33.5]} 22. Nxd4 {[%clk 0:01:55]} 22...
Qb6 {[%clk 0:01:18.2]} 23. Bxf4 {[%clk 0:01:50.9]} 23... Rxf4 {[%clk 0:01:16.7]}
24. Qxg6+ {[%clk 0:01:51.6]} 24... Kf8 {[%clk 0:01:09.7]} 25. Qxh6+ {[%clk
0:01:44.2]} 25... Ke8 {[%clk 0:01:09.8]} 26. Qg6+ {[%clk 0:01:45]} 26... Kd8
{[%clk 0:01:08.4]} 27. Nc6+ {[%clk 0:01:43.5]} 27... Kc7 {[%clk 0:01:06.6]} 28.
Rf1 {[%clk 0:01:39.8]} 28... Raf8 {[%clk 0:00:54.1]} 29. Qg7 {[%clk 0:01:34.8]}
29... Rxf2 {[%clk 0:00:49.7]} 30. Qxe7+ {[%clk 0:01:34.9]} 30... Kc8 {[%clk
0:00:51]} 31. Qd7# {[%clk 0:01:35.1]} 1-0

[Event "*** MasterClass Titled Tuesday Blitz"]
[Site "Chess.com"]
[Date "2017.12.12"]
[Round "6"]
[White "AndreyOstrovskiy"]
[Black "JSMastropiero"]
[Result "0-1"]
[WhiteElo "2474"]
[BlackElo "2321"]
[TimeControl "180+2"]
[EndTime "14:21:33 PST"]
[Termination "JSMastropiero won by resignation"]

1. e4 {[%clk 0:03:01.9]} 1... e5 {[%clk 0:02:59.2]} 2. Nf3 {[%clk 0:03:02.5]}
2... Nc6 {[%clk 0:02:59.8]} 3. Bb5 {[%clk 0:03:02.8]} 3... a6 {[%clk 0:03:00.4]}
4. Bxc6 {[%clk 0:03:03.7]} 4... dxc6 {[%clk 0:03:02.3]} 5. O-O {[%clk
0:03:04.3]} 5... Be7 {[%clk 0:03:03.2]} 6. d3 {[%clk 0:02:55.6]} 6... Bf6 {[%clk
0:03:02.4]} 7. Be3 {[%clk 0:02:48.7]} 7... Ne7 {[%clk 0:03:00.6]} 8. h3 {[%clk
0:02:41.1]} 8... Ng6 {[%clk 0:02:59.8]} 9. Nbd2 {[%clk 0:02:37.3]} 9... Qe7
{[%clk 0:02:57.4]} 10. Nc4 {[%clk 0:02:25.4]} 10... Be6 {[%clk 0:02:51.1]} 11.
Na5 {[%clk 0:02:23.8]} 11... b6 {[%clk 0:02:42.8]} 12. Nb3 {[%clk 0:01:54.9]}
12... c5 {[%clk 0:02:37.3]} 13. Nbd2 {[%clk 0:01:49.3]} 13... Qd7 {[%clk
0:02:33.6]} 14. a4 {[%clk 0:01:46]} 14... a5 {[%clk 0:02:32.8]} 15. b3 {[%clk
0:01:42.6]} 15... h6 {[%clk 0:02:20.9]} 16. Nc4 {[%clk 0:01:30.1]} 16... O-O-O
{[%clk 0:01:53.6]} 17. Qe1 {[%clk 0:00:53.9]} 17... Bxh3 {[%clk 0:01:48.4]} 18.
Kh2 {[%clk 0:00:12.1]} 18... Bxg2 {[%clk 0:01:35.4]} 19. Kxg2 {[%clk 0:00:04.8]}
19... Qg4+ {[%clk 0:01:35.4]} 0-1